Workbook

Sheet Disclaimer
L2: Copyright © 2025 Society of Actuaries Research Institute
B3: A Tool for Evaluating the Statistical Reliability of Mortality Improvement Estimates
B5: Disclaimer
B7: This software is made available free of charge with the understanding that neither the author nor the Society of Actuaries Research Institute
B8: accepts any liability for its use. It may be used for any personal, research or commercial use provided that the user does not represent it as
B9: his or her own work and does not distribute it to others for a fee.

Sheet Overview
B2: A Tool for Evaluating the Statistical Reliability of Mortality Improvement Estimates
B4: Estimating historical mortality trends—which this workbook refers to as “mortality improvement rates”—is statistically challenging. The frequently cited rule-of-thumb that 1,082 deaths are needed to achieve a credible mortality rate estimate is not applicable to improvement rate estimation. This rule-of-thumb assumes that a single rate, rather than the ratio of two rates, is being estimated. To produce a statistically meaningful estimate of a mortality improvement rate, a larger pool of data is required. This workbook uses stochastic simulation to evaluate how the number of persons ("lives") covered in a mortality study, and the length of the study period (in years), affects the statistical reliability of mortality improvement rate estimates.
B5: If your operating system blocks this file, preventing the macros from operating, then it is necessary
B6: to unblock the macros, as follows: download the file to your hard-drive; navigate to the file in
B7: Windows Explorer; right-click on the file; click on "Properties", and click "unblock".

Sheet Analysis
B2: A Tool for Evaluating the Reliability of Mortality Improvement Estimates
B3: This tool uses stochastic simulation to develop confidence intervals for mortality improvement rate estimates. 100K stochastic trials is sufficient to produce robust results, but you may select more trials if you wish.
B4: Below, the term "true" describes an assumed mortality rate or MI rate. Each stochastic trial is based on the assumed "true" values, but the randomness of individual mortality risks causes simulation results to deviate from the assumptions.
B5: The gap between a simulated MI rate and the "true" MI rate can viewed as an estimation error. Using many stochastic trials, this tool creates distributions of errors, which, in turn, provide confidence intervals for MI estimates.
F11: Enter Up to 25 Scenarios to Simulate in Sequence
B12: Input Parameters | F12: 1 | G12: 2 | H12: 3 | I12: 4 | J12: 5 | K12: 6 | L12: 7 | M12: 8 | N12: 9 | O12: 10 | P12: 11 | Q12: 12 | R12: 13 | S12: 14 | T12: 15 | U12: 16 | V12: 17 | W12: 18 | X12: 19 | Y12: 20 | Z12: 21 | AA12: 22 | AB12: 23 | AC12: 24 | AD12: 25
B13: Run this case? ("Y" = Yes) | F13: Y | G13: Y | H13: Y | I13: Y
B14: Exposure (Lives) in first year | F14: 25000 | G14: 100000 | H14: 400000 | I14: 1600000
B15: Exposure (Lives) in final year | F15: 25000 | G15: 100000 | H15: 400000 | I15: 1600000
B16: "True" mortality rate in first year | F16: 0.01 | G16: 0.01 | H16: 0.01 | I16: 0.01
B17: "True" rate of mort improvement ("MI") | F17: 0.01 | G17: 0.01 | H17: 0.01 | I17: 0.01
B18: Final year minus first year of data | F18: 1 | G18: 1 | H18: 1 | I18: 1
B19: Use all years of data or only first & final? | F19: First & Final | G19: First & Final | H19: First & Final | I19: First & Final
B20: Number of stochastic trials (1000s) | F20: 200 | G20: 200 | H20: 200 | I20: 200
B21: Random number sequence | F21: Static | G21: Static | H21: Static | I21: Static
B23: Outputs
B25: "True" mortality rate in first year | F25: 0.01 | G25: 0.01 | H25: 0.01 | I25: 0.01
B26: Expected deaths in first year | F26: 250 | G26: 1000 | H26: 4000 | I26: 16000
B27: Stdev of deaths | F27: 15.73213291 | G27: 31.46426582 | H27: 62.92853165 | I27: 125.8570633
B28: Stdev of deaths as % of expected | F28: 0.06292853504 | G28: 0.03146426752 | H28: 0.01573213376 | I28: 0.007866066881
B30: "True" mortality rate in final year | F30: 0.009899999946 | G30: 0.009899999946 | H30: 0.009899999946 | I30: 0.009899999946
B31: Expected deaths in final year | F31: 247.5 | G31: 990 | H31: 3960 | I31: 15840
B32: Stdev of deaths | F32: 15.65406513 | G32: 31.30813026 | H32: 62.61626053 | I32: 125.2325211
B33: Stdev of deaths as % of expected | F33: 0.0632487461 | G33: 0.03162437305 | H33: 0.01581218652 | I33: 0.007906093262
B35: "True" MI rate (copied from row 17) | F35: 0.01 | G35: 0.01 | H35: 0.01 | I35: 0.01
B37: MI Estimation Error: median | F37: 0.0003651287407 | G37: 0.0001821541227 | H37: 9.074946865e-05 | I37: 4.539638758e-05
B38: MI Estimation Error: average | F38: -0.003687137832 | G38: -0.0008486483014 | H38: -0.0001793975759 | I38: -2.869601484e-05
B39: MI Estimation Error: stdev | F39: 0.08911717573 | G39: 0.04419216942 | H39: 0.02205135552 | I39: 0.01102012639
B41: Percentiles of MI Error Terms
B42: Percentile = 2.5 | F42: -0.1902493682 | G42: -0.09050129801 | H42: -0.04425327014 | I42: -0.02188671893
B43: Percentile = 5.0 | F43: -0.1558326617 | G43: -0.07484340817 | H43: -0.03673469666 | I43: -0.01820262596
B44: Percentile = 50 (median) | F44: 0.0003651287407 | G44: 0.0001821541227 | H44: 9.074946865e-05 | I44: 4.539638758e-05
B45: Percentile = 95 | F45: 0.1357822061 | G45: 0.07014141493 | H45: 0.03568990156 | I45: 0.01801052634
B46: Percentile = 97.5 | F46: 0.1598235782 | G46: 0.08303641286 | H46: 0.04234145302 | I46: 0.02139986586
B47: Percentile Delta: (95 - 5) / 2 | F47: 0.1458074339 | G47: 0.07249241155 | H47: 0.03621229911 | I47: 0.01810657615
B49: Confidence Intervals for MI Estimates
B50: Prob of |MI Error| < 10% | F50: 0.74292 | G50: 0.97579 | H50: 0.999995 | I50: 1
B51: Prob of |MI Error| < 5% | F51: 0.429345 | G51: 0.743045 | H51: 0.976315 | I51: 0.999995
B52: Prob of |MI Error| < 1% | F52: 0.089995 | G52: 0.180025 | H52: 0.35044 | I52: 0.635625
B53: Prob of |MI Error| < 0.5% | F53: 0.045045 | G53: 0.089955 | H53: 0.180075 | I53: 0.35051
B54: Prob of |MI Error| < 0.1% | F54: 0.00896 | G54: 0.01825 | H54: 0.036265 | I54: 0.07195
B56: Percentiles of Mortality Rate Errors in First Year, as % of True Mortality Rate
B57: Percentile = 2.5 | F57: -0.1232396685 | G57: -0.06161987782 | H57: -0.03080993891 | I57: -0.01540492289
B58: Percentile = 5.0 | F58: -0.1032140423 | G58: -0.0516069727 | H58: -0.02580353059 | I58: -0.01290171873
B59: Percentile = 50 (median) | F59: 0.0002829357982 | G59: 0.0001414678991 | H59: 7.073394954e-05 | I59: 3.539025784e-05
B60: Percentile = 95 | F60: 0.103056645 | G60: 0.05152832251 | H60: 0.02576420549 | I60: 0.01288205851
B61: Percentile = 97.5 | F61: 0.1228283452 | G61: 0.06141421618 | H61: 0.03070710925 | I61: 0.01535360003
B62: Percentile Delta: (95 - 5) / 2 | F62: 0.1031353436 | G62: 0.05156764761 | H62: 0.02578386804 | I62: 0.01289188862
B64: Confidence Intervals for Mortality Rate Estimate in First Year of Study
B65: Prob of |q Error| < 10% of q | F65: 0.8879631517 | G65: 0.998518119 | H65: 0.9999999998 | I65: 1
B66: Prob of |q Error| < 5% of q | F66: 0.5731259365 | G66: 0.8879631517 | H66: 0.998518119 | I66: 0.9999999998
B67: Prob of |q Error| < 1% of q | F67: 0.1262605517 | G67: 0.2493791637 | H67: 0.4749900127 | I67: 0.7963721501
B68: Prob of |q Error| < 0.5% of q | F68: 0.06332944523 | G68: 0.1262605517 | H68: 0.2493791637 | I68: 0.4749900127
B69: Prob of |q Error| < 0.1% of q | F69: 0.01267868462 | G69: 0.02535416803 | H69: 0.05068274087 | I69: 0.1011611848
B74: Simulation Results for the 1000 Stochastic Trials of Case #1
B75: The detail below is provided only for case #1
F77: True | G77: Estimated | J77: Simulated Mortality Rates
D78: Trial | F78: MI | G78: MI | H78: MI Error | J78: Year 1 | K78: Year 2
D80: 1 | F80: 0.009999999776 | G80: -0.1126855761 | H80: -0.122685574 | J80: 0.009413678199 | K80: 0.01047446392
D81: 2 | F81: 0.009999999776 | G81: -0.0947971791 | H81: -0.104797177 | J81: 0.009035031311 | K81: 0.009891526774
D82: 3 | F82: 0.009999999776 | G82: -0.07069744915 | H82: -0.08069744706 | J82: 0.01026234683 | K82: 0.01098786853
D83: 4 | F83: 0.009999999776 | G83: -0.01961062662 | H83: -0.0296106264 | J83: 0.009227681905 | K83: 0.009408642538
D84: 5 | F84: 0.009999999776 | G84: -0.1019083634 | H84: -0.1119083613 | J84: 0.009363556281 | K84: 0.01031778101
D85: 6 | F85: 0.009999999776 | G85: -0.1651452929 | H85: -0.1751452982 | J85: 0.009419506416 | K85: 0.01097509358
D86: 7 | F86: 0.009999999776 | G86: 0.04270447046 | H86: 0.03270447254 | J86: 0.009752695449 | K86: 0.009336211719
D87: 8 | F87: 0.009999999776 | G87: -0.1425390095 | H87: -0.1525390148 | J87: 0.009153499268 | K87: 0.01045823004
D88: 9 | F88: 0.009999999776 | G88: 0.00848241616 | H88: -0.001517583616 | J88: 0.009589121677 | K88: 0.009507782757
D89: 10 | F89: 0.009999999776 | G89: -0.04011096805 | H89: -0.05011096597 | J89: 0.01026331726 | K89: 0.01067498885
D90: 11 | F90: 0.009999999776 | G90: 0.1645584255 | H90: 0.1545584202 | J90: 0.01074038725 | K90: 0.008972966112
D91: 12 | F91: 0.009999999776 | G91: 0.152962774 | H91: 0.1429627687 | J91: 0.009965999983 | K91: 0.008441573009
D92: 13 | F92: 0.009999999776 | G92: 0.009165070951 | H92: -0.0008349288255 | J92: 0.009102197364 | K92: 0.009018775076
D93: 14 | F93: 0.009999999776 | G93: 0.06095207483 | H93: 0.05095207691 | J93: 0.01079939771 | K93: 0.01014115196
D94: 15 | F94: 0.009999999776 | G94: -0.0004507387057 | H94: -0.01045073848 | J94: 0.01034967229 | K94: 0.01035433728
D95: 16 | F95: 0.009999999776 | G95: 0.04416902363 | H95: 0.03416902572 | J95: 0.009713991545 | K95: 0.009284934029
D96: 17 | F96: 0.009999999776 | G96: -0.09504002333 | H96: -0.1050400212 | J96: 0.008912512101 | K96: 0.009759557433
D97: 18 | F97: 0.009999999776 | G97: 0.09174673259 | H97: 0.08174673468 | J97: 0.01037062332 | K97: 0.009419152513
D98: 19 | F98: 0.009999999776 | G98: 0.0443899259 | H98: 0.03438992798 | J98: 0.009785155766 | K98: 0.009350793436
D99: 20 | F99: 0.009999999776 | G99: -0.01306372695 | H99: -0.02306372672 | J99: 0.009805468842 | K99: 0.009933564812
D100: 21 | F100: 0.009999999776 | G100: 0.08639160544 | H100: 0.07639160752 | J100: 0.01083126664 | K100: 0.009895536117
D101: 22 | E101: 0.1757389307 | F101: 0.009999999776 | G101: 0.05530893058 | H101: 0.04530893266 | J101: 0.01090082619 | K101: 0.0102979131
D102: 23 | E102: 0.8205426335 | F102: 0.009999999776 | G102: 0.100997068 | H102: 0.09099707007 | J102: 0.01105462201 | K102: 0.009938137606
D103: 24 | E103: 0.06258416176 | F103: 0.009999999776 | G103: -0.01219186001 | H103: -0.02219185978 | J103: 0.01014917996 | K103: 0.01027291734
D104: 25 | E104: 0.4946016669 | F104: 0.009999999776 | G104: 0.0545906648 | H104: 0.04459066689 | J104: 0.00958273001 | K104: 0.009059602395
D105: 26 | E105: 0.6616228819 | F105: 0.009999999776 | G105: -0.06383195519 | H105: -0.07383195311 | J105: 0.01041674893 | K105: 0.01108167041
D106: 27 | E106: 0.9588380456 | F106: 0.009999999776 | G106: -0.0006165178493 | H106: -0.01061651763 | J106: 0.01025105175 | K106: 0.0102573717
D107: 28 | E107: 0.1098561287 | F107: 0.009999999776 | G107: 0.0616613999 | H107: 0.05166140199 | J107: 0.01020338386 | K107: 0.009574228898
D108: 29 | E108: 0.2163111567 | F108: 0.009999999776 | G108: 0.05019821972 | H108: 0.0401982218 | J108: 0.01155647077 | K108: 0.01097635645
D109: 30 | E109: 0.1559182405 | F109: 0.009999999776 | G109: -0.07021579146 | H109: -0.08021578938 | J109: 0.009815311991 | K109: 0.01050450187
D110: 31 | E110: 0.7476804852 | F110: 0.009999999776 | G110: -0.1700382829 | H110: -0.1800382882 | J110: 0.009544005617 | K110: 0.01116685197
D111: 32 | F111: 0.009999999776 | G111: 0.04371262342 | H111: 0.0337126255 | J111: 0.009736264125 | K111: 0.009310666472
D112: 33 | F112: 0.009999999776 | G112: 0.09155400097 | H112: 0.08155400306 | J112: 0.01069276407 | K112: 0.009713798761
D113: 34 | F113: 0.009999999776 | G113: -0.06488730758 | H113: -0.0748873055 | J113: 0.009981410578 | K113: 0.01062907744
D114: 35 | F114: 0.009999999776 | G114: 0.04918272048 | H114: 0.03918272257 | J114: 0.01004954614 | K114: 0.009555282071
D115: 36 | F115: 0.009999999776 | G115: 0.04112567753 | H115: 0.03112567775 | J115: 0.009650313295 | K115: 0.009253437631
D116: 37 | F116: 0.009999999776 | G116: 0.07113388926 | H116: 0.06113389134 | J116: 0.01094875857 | K116: 0.01016993076
D117: 38 | F117: 0.009999999776 | G117: -0.0163405966 | H117: -0.02634059638 | J117: 0.01025796682 | K117: 0.01042558812
D118: 39 | F118: 0.009999999776 | G118: 0.03963160142 | H118: 0.02963160165 | J118: 0.01113695092 | K118: 0.01069557574
D119: 40 | F119: 0.009999999776 | G119: -0.02380190231 | H119: -0.03380190209 | J119: 0.00957111828 | K119: 0.009798929095
D120: 41 | F120: 0.009999999776 | G120: -0.09940107167 | H120: -0.1094010696 | J120: 0.009183753282 | K120: 0.01009662822
D121: 42 | F121: 0.009999999776 | G121: 0.01961914822 | H121: 0.009619148448 | J121: 0.01104951557 | K121: 0.01083273347
D122: 43 | F122: 0.009999999776 | G122: -0.1845198125 | H122: -0.1945198178 | J122: 0.008821812458 | K122: 0.01044961158
D123: 44 | F123: 0.009999999776 | G123: 0.1099864095 | H123: 0.09998641163 | J123: 0.01029866934 | K123: 0.009165955707
D124: 45 | F124: 0.009999999776 | G124: 0.1076402217 | H124: 0.0976402238 | J124: 0.01012225449 | K124: 0.00903269276
D125: 46 | F125: 0.009999999776 | G125: -0.05320104212 | H125: -0.06320104003 | J125: 0.009801575914 | K125: 0.01032302994
D126: 47 | F126: 0.009999999776 | G126: 0.09133142233 | H126: 0.08133142442 | J126: 0.01053877082 | K126: 0.009576249868
D127: 48 | F127: 0.009999999776 | G127: -0.06250424683 | H127: -0.07250424474 | J127: 0.009606125765 | K127: 0.01020654943
D128: 49 | F128: 0.009999999776 | G128: 0.0153402267 | H128: 0.005340226926 | J128: 0.009880373254 | K128: 0.009728806093
D129: 50 | F129: 0.009999999776 | G129: 0.01371214446 | H129: 0.00371214468 | J129: 0.009828025475 | K129: 0.009693262167
D130: 51 | F130: 0.009999999776 | G130: 0.01334410533 | H130: 0.003344105557 | J130: 0.009901505895 | K130: 0.009769379161
D131: 52 | F131: 0.009999999776 | G131: -0.01240057312 | H131: -0.0224005729 | J131: 0.00979601033 | K131: 0.009917486459
D132: 53 | F132: 0.009999999776 | G132: -0.2356000096 | H132: -0.2456000149 | J132: 0.008700770326 | K132: 0.01075067185
D133: 54 | F133: 0.009999999776 | G133: 0.1014443412 | H133: 0.09144434333 | J133: 0.009864958934 | K133: 0.008864214644
D134: 55 | F134: 0.009999999776 | G134: 0.04139768332 | H134: 0.03139768541 | J134: 0.01026444603 | K134: 0.009839521721
D135: 56 | F135: 0.009999999776 | G135: 0.04586553574 | H135: 0.03586553782 | J135: 0.010131469 | K135: 0.009666783735
D136: 57 | F136: 0.009999999776 | G136: 0.01728459448 | H136: 0.0072845947 | J136: 0.01010959968 | K136: 0.00993485935
D137: 58 | F137: 0.009999999776 | G137: -0.05216773599 | H137: -0.06216773391 | J137: 0.009691727348 | K137: 0.01019732282
D138: 59 | F138: 0.009999999776 | G138: -0.02733220719 | H138: -0.03733220696 | J138: 0.009648479521 | K138: 0.009912193753
D139: 60 | F139: 0.009999999776 | G139: -0.1273415387 | H139: -0.137341544 | J139: 0.009416578338 | K139: 0.01061569992
D140: 61 | F140: 0.009999999776 | G140: 0.101371251 | H140: 0.09137125313 | J140: 0.01017448865 | K140: 0.009143088013
D141: 62 | F141: 0.009999999776 | G141: 0.1141113415 | H141: 0.1041113436 | J141: 0.01082221512 | K141: 0.009587277658
D142: 63 | F142: 0.009999999776 | G142: -0.03397899121 | H142: -0.04397898912 | J142: 0.0103320675 | K142: 0.01068314072
D143: 64 | F143: 0.009999999776 | G143: 0.1061377823 | H143: 0.09613778442 | J143: 0.01022614259 | K143: 0.0091407625
D144: 65 | F144: 0.009999999776 | G144: 0.09254464507 | H144: 0.08254464716 | J144: 0.01000552904 | K144: 0.009079570882
D145: 66 | F145: 0.009999999776 | G145: -0.0123117175 | H145: -0.02231171727 | J145: 0.009945681319 | K145: 0.01006812975
D146: 67 | F146: 0.009999999776 | G146: -0.0500150919 | H146: -0.06001508981 | J146: 0.009786084294 | K146: 0.01027553622
D147: 68 | F147: 0.009999999776 | G147: 0.1040297821 | H147: 0.0940297842 | J147: 0.009376655333 | K147: 0.008401203901
D148: 69 | F148: 0.009999999776 | G148: 0.02965578996 | H148: 0.01965579018 | J148: 0.01099948864 | K148: 0.01067329012
D149: 70 | F149: 0.009999999776 | G149: -0.02196106501 | H149: -0.03196106479 | J149: 0.00952044595 | K149: 0.009729525074
D150: 71 | F150: 0.009999999776 | G150: 0.002863342408 | H150: -0.007136657368 | J150: 0.009721610695 | K150: 0.009693774395
D151: 72 | F151: 0.009999999776 | G151: -0.1472350061 | H151: -0.1572350115 | J151: 0.009290820919 | K151: 0.01065875497
D152: 73 | F152: 0.009999999776 | G152: 0.0112391822 | H152: 0.001239182428 | J152: 0.009921544231 | K152: 0.009810034186
D153: 74 | F153: 0.009999999776 | G153: 0.1386455745 | H153: 0.1286455691 | J153: 0.0106706107 | K153: 0.009191177785
D154: 75 | F154: 0.009999999776 | G154: -0.06694052368 | H154: -0.0769405216 | J154: 0.01034672651 | K154: 0.0110393418
D155: 76 | F155: 0.009999999776 | G155: -0.08008590341 | H155: -0.09008590132 | J155: 0.01022787299 | K155: 0.01104698144
D156: 77 | F156: 0.009999999776 | G156: 0.04441019893 | H156: 0.03441020101 | J156: 0.01071225852 | K156: 0.01023652498
D157: 78 | F157: 0.009999999776 | G157: -0.3276714981 | H157: -0.3376714885 | J157: 0.007354496047 | K157: 0.009764354676
D158: 79 | F158: 0.009999999776 | G158: -0.1323706955 | H158: -0.1423707008 | J158: 0.009485692717 | K158: 0.01074132044
D159: 80 | F159: 0.009999999776 | G159: 0.08482319117 | H159: 0.07482319325 | J159: 0.01153909415 | K159: 0.01056031138
D160: 81 | F160: 0.009999999776 | G160: 0.1397905201 | H160: 0.1297905147 | J160: 0.01074714586 | K160: 0.00924479682
D161: 82 | F161: 0.009999999776 | G161: 0.04995148629 | H161: 0.03995148838 | J161: 0.01040356141 | K161: 0.009883888066
D162: 83 | F162: 0.009999999776 | G162: 0.04565728456 | H162: 0.03565728664 | J162: 0.01015950553 | K162: 0.009695650078
D163: 84 | F163: 0.009999999776 | G163: 0.06067506224 | H163: 0.05067506433 | J163: 0.009434890002 | K163: 0.008862427436
D164: 85 | F164: 0.009999999776 | G164: 0.04873331636 | H164: 0.03873331845 | J164: 0.009982111864 | K164: 0.009495650418
D165: 86 | F165: 0.009999999776 | G165: -0.1140650138 | H165: -0.1240650117 | J165: 0.009242141619 | K165: 0.01029634662
D166: 87 | F166: 0.009999999776 | G166: -0.08615795523 | H166: -0.09615795314 | J166: 0.009564864449 | K166: 0.01038895361
D167: 88 | F167: 0.009999999776 | G167: 0.007001684979 | H167: -0.002998314798 | J167: 0.009873634204 | K167: 0.00980450213
D168: 89 | F168: 0.009999999776 | G168: 0.1216176525 | H168: 0.1116176546 | J168: 0.01003522892 | K168: 0.008814767934
D169: 90 | F169: 0.009999999776 | G169: 0.08525213599 | H169: 0.07525213808 | J169: 0.01018791087 | K169: 0.009319369681
D170: 91 | F170: 0.009999999776 | G170: 0.04718050361 | H170: 0.03718050569 | J170: 0.010118559 | K170: 0.009641160257
D171: 92 | F171: 0.009999999776 | G171: -0.02648268454 | H171: -0.03648268431 | J171: 0.01017089002 | K171: 0.01044024248
D172: 93 | F172: 0.009999999776 | G172: -0.06305237859 | H172: -0.07305237651 | J172: 0.009331573732 | K172: 0.00991995167
D173: 94 | F173: 0.009999999776 | G173: -0.07631199062 | H173: -0.08631198853 | J173: 0.01032022759 | K173: 0.0111077847
D174: 95 | F174: 0.009999999776 | G174: 0.02488279529 | H174: 0.01488279551 | J174: 0.01016352512 | K174: 0.0099106282
D175: 96 | F175: 0.009999999776 | G175: 0.09931422025 | H175: 0.08931422234 | J175: 0.01066376735 | K175: 0.009604703635
D176: 97 | F176: 0.009999999776 | G176: 0.03671411797 | H176: 0.0267141182 | J176: 0.00974504184 | K176: 0.009387261234
D177: 98 | F177: 0.009999999776 | G177: -0.1309241652 | H177: -0.1409241706 | J177: 0.009565108456 | K177: 0.01081741229
D178: 99 | F178: 0.009999999776 | G178: -0.005058621988 | H178: -0.01505862176 | J178: 0.009870290756 | K178: 0.009920220822
D179: 100 | F179: 0.009999999776 | G179: 0.2172330022 | H179: 0.2072329968 | J179: 0.01123414654 | K179: 0.008793719113
D180: 101 | F180: 0.009999999776 | G180: -0.02848099731 | H180: -0.03848099709 | J180: 0.009897081181 | K180: 0.01017895993
D181: 102 | F181: 0.009999999776 | G181: -0.2196543664 | H181: -0.2296543717 | J181: 0.009260465391 | K181: 0.01129456703
D182: 103 | F182: 0.009999999776 | G182: -0.02354448102 | H182: -0.0335444808 | J182: 0.01031324454 | K182: 0.01055606455
D183: 104 | F183: 0.009999999776 | G183: 0.1412127465 | H183: 0.1312127411 | J183: 0.0113762198 | K183: 0.009769752622
D184: 105 | F184: 0.009999999776 | G184: -0.100569278 | H184: -0.1105692759 | J184: 0.01010487135 | K184: 0.01112111099
D185: 106 | F185: 0.009999999776 | G185: -0.008659802377 | H185: -0.01865980215 | J185: 0.01020111889 | K185: 0.01028945856
D186: 107 | F186: 0.009999999776 | G186: -0.1072541624 | H186: -0.1172541603 | J186: 0.009389763698 | K186: 0.01039685495
D187: 108 | F187: 0.009999999776 | G187: -0.02501205169 | H187: -0.03501205146 | J187: 0.0101678241 | K187: 0.01042214222
D188: 109 | F188: 0.009999999776 | G188: 0.01379696559 | H188: 0.003796965815 | J188: 0.009490846656 | K188: 0.009359901771
D189: 110 | F189: 0.009999999776 | G189: -0.2271122038 | H189: -0.2371122092 | J189: 0.008698015474 | K189: 0.01067344099
D190: 111 | F190: 0.009999999776 | G190: -0.1196037605 | H190: -0.1296037585 | J190: 0.009397785179 | K190: 0.0105217956
D191: 112 | F191: 0.009999999776 | G191: -0.02986109816 | H191: -0.03986109793 | J191: 0.0104363868 | K191: 0.01074802876
D192: 113 | F192: 0.009999999776 | G192: -0.05294901878 | H192: -0.06294901669 | J192: 0.01026897691 | K192: 0.01081270911
D193: 114 | F193: 0.009999999776 | G193: -0.2200522125 | H193: -0.2300522178 | J193: 0.008601198904 | K193: 0.0104939118
D194: 115 | F194: 0.009999999776 | G194: -0.04072424024 | H194: -0.05072423816 | J194: 0.009204543196 | K194: 0.009579391219
D195: 116 | F195: 0.009999999776 | G195: -0.07468756288 | H195: -0.0846875608 | J195: 0.009040446021 | K195: 0.009715654887
D196: 117 | F196: 0.009999999776 | G196: -0.02920130081 | H196: -0.03920130059 | J196: 0.01010184828 | K196: 0.01039683539
D197: 118 | F197: 0.009999999776 | G197: 0.07756303251 | H197: 0.06756303459 | J197: 0.009617090225 | K197: 0.008871159516
D198: 119 | F198: 0.009999999776 | G198: 0.06604406238 | H198: 0.05604406446 | J198: 0.0110260034 | K198: 0.01029780135
D199: 120 | F199: 0.009999999776 | G199: 0.03434191272 | H199: 0.02434191294 | J199: 0.009768932126 | K199: 0.009433448315
D200: 121 | F200: 0.009999999776 | G200: -0.09354037046 | H200: -0.1035403684 | J200: 0.009779813699 | K200: 0.01069462113
D201: 122 | F201: 0.009999999776 | G201: 0.05682080984 | H201: 0.04682081193 | J201: 0.01085117925 | K201: 0.01023460645
D202: 123 | F202: 0.009999999776 | G202: 0.05874177068 | H202: 0.04874177277 | J202: 0.0104537094 | K202: 0.009839639999
D203: 124 | F203: 0.009999999776 | G203: -0.02814622782 | H203: -0.0381462276 | J203: 0.009392034262 | K203: 0.009656384587
D204: 125 | F204: 0.009999999776 | G204: 0.08422450721 | H204: 0.0742245093 | J204: 0.01064649783 | K204: 0.009749801829
D205: 126 | F205: 0.009999999776 | G205: -0.07259918749 | H205: -0.08259918541 | J205: 0.008393606171 | K205: 0.009002975188
D206: 127 | F206: 0.009999999776 | G206: 0.05191601813 | H206: 0.04191602021 | J206: 0.009443961084 | K206: 0.008953668177
D207: 128 | F207: 0.009999999776 | G207: 0.07567249984 | H207: 0.06567250192 | J207: 0.00953355059 | K207: 0.008812122978
D208: 129 | F208: 0.009999999776 | G208: -0.08233425766 | H208: -0.09233425558 | J208: 0.01021225564 | K208: 0.01105307415
D209: 130 | F209: 0.009999999776 | G209: 0.001540251076 | H209: -0.0084597487 | J209: 0.009097052738 | K209: 0.00908304099
D210: 131 | F210: 0.009999999776 | G210: 0.02223879471 | H210: 0.01223879494 | J210: 0.01095561031 | K210: 0.01071197074
D211: 132 | F211: 0.009999999776 | G211: 0.1260869801 | H211: 0.1160869822 | J211: 0.01131359115 | K211: 0.009887094609
D212: 133 | F212: 0.009999999776 | G212: 0.07429792732 | H212: 0.06429792941 | J212: 0.01025551371 | K212: 0.009493550286
D213: 134 | F213: 0.009999999776 | G213: -0.03385697305 | H213: -0.04385697097 | J213: 0.01015928295 | K213: 0.01050324552
D214: 135 | F214: 0.009999999776 | G214: -0.03916536272 | H214: -0.04916536063 | J214: 0.009668782353 | K214: 0.0100474637
D215: 136 | F215: 0.009999999776 | G215: -0.05332633853 | H215: -0.06332633644 | J215: 0.0090472335 | K215: 0.009529689327
D216: 137 | F216: 0.009999999776 | G216: 0.04562278092 | H216: 0.03562278301 | J216: 0.01032037288 | K216: 0.009849528782
D217: 138 | F217: 0.009999999776 | G217: -0.1475339681 | H217: -0.1575339735 | J217: 0.01001304854 | K217: 0.01149031334
D218: 139 | F218: 0.009999999776 | G218: 0.03028310463 | H218: 0.02028310485 | J218: 0.01024472807 | K218: 0.00993448589
D219: 140 | F219: 0.009999999776 | G219: -0.0003796480596 | H219: -0.01037964784 | J219: 0.01058522053 | K219: 0.01058923919
D220: 141 | F220: 0.009999999776 | G220: 0.01858124696 | H220: 0.008581247181 | J220: 0.01062904578 | K220: 0.01043154486
D221: 142 | F221: 0.009999999776 | G221: 0.04930795729 | H221: 0.03930795938 | J221: 0.01030144747 | K221: 0.009793504141
... 858 more rows

Sheet Hidden (hidden)
B2: A Tool for Evaluating the Reliability of Mortality Improvement Estimates
B3: This tool uses stochastic simulation to develop confidence intervals for mortality improvement rate estimates. 100K stochastic trials is sufficient to produce robust results, but you may select more trials if you wish.
F9: Enter Up to 20 Scenarios to Simulate in Sequence
B10: Input Parameters | F10: 1 | G10: 2 | H10: 3 | I10: 4 | J10: 5 | K10: 6 | L10: 7 | M10: 8 | N10: 9 | O10: 10 | P10: 11 | Q10: 12 | R10: 13 | S10: 14 | T10: 15 | U10: 16 | V10: 17 | W10: 18 | X10: 19 | Y10: 20 | Z10: 21 | AA10: 22 | AB10: 23 | AC10: 24 | AD10: 25
B11: Run this case? ("Y" = Yes) | F11: Y | G11: Y | H11: Y | I11: Y | J11: Y | K11: Y | M11: Y | N11: Y | O11: Y | P11: Y | Q11: Y | R11: Y | S11: Y | U11: Y | V11: Y | W11: Y | X11: Y | Y11: Y | AA11: Y | AB11: Y
B12: Exposure (Lives) in first year | F12: 25000 | G12: 100000 | H12: 400000 | I12: 12500 | J12: 50000 | K12: 200000 | M12: 25000 | N12: 100000 | O12: 400000 | P12: 1600000 | Q12: 6400000 | R12: 25600000 | S12: 102400000 | U12: 6400000 | V12: 6400000 | W12: 6400000 | X12: 6400000 | Y12: 6400000 | AA12: 100000 | AB12: 100000
B13: Exposure (Lives) in final year | F13: 25000 | G13: 100000 | H13: 400000 | I13: 12500 | J13: 50000 | K13: 200000 | M13: 25000 | N13: 100000 | O13: 400000 | P13: 1600000 | Q13: 6400000 | R13: 25600000 | S13: 102400000 | U13: 6400000 | V13: 6400000 | W13: 6400000 | X13: 6400000 | Y13: 6400000 | AA13: 100000 | AB13: 100000
B14: True mortality rate in first year | F14: 0.01 | G14: 0.01 | H14: 0.01 | I14: 0.02 | J14: 0.02 | K14: 0.02 | M14: 0.01 | N14: 0.01 | O14: 0.01 | P14: 0.01 | Q14: 0.01 | R14: 0.01 | S14: 0.01 | U14: 0.01 | V14: 0.01 | W14: 0.01 | X14: 0.01 | Y14: 0.01 | AA14: 0.01 | AB14: 0.01
B15: True rate of mortality improvement | F15: 0.02 | G15: 0.02 | H15: 0.02 | I15: 0.02 | J15: 0.02 | K15: 0.02 | M15: 0.02 | N15: 0.02 | O15: 0.02 | P15: 0.02 | Q15: 0.02 | R15: 0.02 | S15: 0.02 | U15: 0.02 | V15: 0.02 | W15: 0.02 | X15: 0.02 | Y15: 0.02 | AA15: 0.02 | AB15: 0.02
B16: Final year minus first year of data | F16: 1 | G16: 1 | H16: 1 | I16: 1 | J16: 1 | K16: 1 | M16: 1 | N16: 1 | O16: 1 | P16: 1 | Q16: 1 | R16: 1 | S16: 1 | U16: 1 | V16: 2 | W16: 4 | X16: 8 | Y16: 16 | AA16: 10 | AB16: 10
B17: Use all years of data or only first & final? | F17: First & Final | G17: First & Final | H17: First & Final | I17: First & Final | J17: First & Final | K17: First & Final | M17: First & Final | N17: First & Final | O17: First & Final | P17: First & Final | Q17: First & Final | R17: First & Final | S17: First & Final | U17: First & Final | V17: First & Final | W17: First & Final | X17: First & Final | Y17: First & Final | AA17: First & Final | AB17: All Years
B18: Number of stochastic trials (1000s) | F18: 200 | G18: 200 | H18: 200 | I18: 200 | J18: 200 | K18: 200 | M18: 200 | N18: 200 | O18: 200 | P18: 200 | Q18: 200 | R18: 200 | S18: 200 | U18: 200 | V18: 200 | W18: 200 | X18: 200 | Y18: 200 | AA18: 200 | AB18: 200
B19: Random number sequence | F19: Static | G19: Static | H19: Static | I19: Static | J19: Static | K19: Static | M19: Static | N19: Static | O19: Static | P19: Static | Q19: Static | R19: Static | S19: Static | U19: Static | V19: Static | W19: Static | X19: Static | Y19: Static | AA19: Static | AB19: Static
B21: Outputs
B23: Expected death rate in first year | F23: 0.009999999776 | G23: 0.009999999776 | H23: 0.009999999776 | I23: 0.01999999955 | J23: 0.01999999955 | K23: 0.01999999955 | M23: 0.009999999776 | N23: 0.009999999776 | O23: 0.009999999776 | P23: 0.009999999776 | Q23: 0.009999999776 | R23: 0.009999999776 | S23: 0.009999999776 | U23: 0.009999999776 | V23: 0.009999999776 | W23: 0.009999999776 | X23: 0.009999999776 | Y23: 0.009999999776 | AA23: 0.009999999776 | AB23: 0.009999999776
B24: Expected deaths in first year | F24: 250 | G24: 1000 | H24: 4000 | I24: 250 | J24: 1000 | K24: 4000 | M24: 250 | N24: 1000 | O24: 4000 | P24: 16000 | Q24: 64000 | R24: 256000 | S24: 1024000 | U24: 64000 | V24: 64000 | W24: 64000 | X24: 64000 | Y24: 64000 | AA24: 1000 | AB24: 1000
B25: Stdev of deaths | F25: 15.73213291 | G25: 31.46426582 | H25: 62.92853165 | I25: 15.65247536 | J25: 31.30495071 | K25: 62.60990143 | M25: 15.73213291 | N25: 31.46426582 | O25: 62.92853165 | P25: 125.8570633 | Q25: 251.7141266 | R25: 503.4282532 | S25: 1006.856506 | U25: 251.7141266 | V25: 251.7141266 | W25: 251.7141266 | X25: 251.7141266 | Y25: 251.7141266 | AA25: 31.46426582 | AB25: 31.46426582
B26: Stdev of deaths as % of expected | F26: 0.06292853504 | G26: 0.03146426752 | H26: 0.01573213376 | I26: 0.06260990351 | J26: 0.03130495176 | K26: 0.01565247588 | M26: 0.06292853504 | N26: 0.03146426752 | O26: 0.01573213376 | P26: 0.007866066881 | Q26: 0.00393303344 | R26: 0.00196651672 | S26: 0.0009832583601 | U26: 0.00393303344 | V26: 0.00393303344 | W26: 0.00393303344 | X26: 0.00393303344 | Y26: 0.00393303344 | AA26: 0.03146426752 | AB26: 0.03146426752
B28: Expected death rate in final year | F28: 0.009999999776 | G28: 0.009999999776 | H28: 0.009999999776 | I28: 0.01999999955 | J28: 0.01999999955 | K28: 0.01999999955 | M28: 0.009999999776 | N28: 0.009999999776 | O28: 0.009999999776 | P28: 0.009999999776 | Q28: 0.009999999776 | R28: 0.009999999776 | S28: 0.009999999776 | U28: 0.009999999776 | V28: 0.009999999776 | W28: 0.009999999776 | X28: 0.009999999776 | Y28: 0.009999999776 | AA28: 0.00817072764 | AB28: 0.00817072764
B29: Expected deaths in final year | F29: 250 | G29: 1000 | H29: 4000 | I29: 250 | J29: 1000 | K29: 4000 | M29: 250 | N29: 1000 | O29: 4000 | P29: 16000 | Q29: 64000 | R29: 256000 | S29: 1024000 | U29: 64000 | V29: 64000 | W29: 64000 | X29: 64000 | Y29: 64000 | AA29: 817.0727539 | AB29: 817.0727539
B30: Stdev of deaths | F30: 15.73213291 | G30: 31.46426582 | H30: 62.92853165 | I30: 15.65247536 | J30: 31.30495071 | K30: 62.60990143 | M30: 15.73213291 | N30: 31.46426582 | O30: 62.92853165 | P30: 125.8570633 | Q30: 251.7141266 | R30: 503.4282532 | S30: 1006.856506 | U30: 251.7141266 | V30: 251.7141266 | W30: 251.7141266 | X30: 251.7141266 | Y30: 251.7141266 | AA30: 28.46746635 | AB30: 28.46746635
B31: Stdev of deaths as % of expected | F31: 0.06292853504 | G31: 0.03146426752 | H31: 0.01573213376 | I31: 0.06260990351 | J31: 0.03130495176 | K31: 0.01565247588 | M31: 0.06292853504 | N31: 0.03146426752 | O31: 0.01573213376 | P31: 0.007866066881 | Q31: 0.00393303344 | R31: 0.00196651672 | S31: 0.0009832583601 | U31: 0.00393303344 | V31: 0.00393303344 | W31: 0.00393303344 | X31: 0.00393303344 | Y31: 0.00393303344 | AA31: 0.03484079614 | AB31: 0.03484079614
B33: "True" MI rate | F33: 0 | G33: 0 | H33: 0 | I33: 0 | J33: 0 | K33: 0 | M33: 0 | N33: 0 | O33: 0 | P33: 0 | Q33: 0 | R33: 0 | S33: 0 | U33: 0 | V33: 0 | W33: 0 | X33: 0 | Y33: 0 | AA33: 0.01999999955 | AB33: 0.01999999955
B35: MI Estimation Error: median | F35: 0.0004990502784 | G35: -0.0003192124714 | H35: 9.826537735e-06 | I35: -0.0004813011183 | J35: -0.0002120232675 | K35: -8.100711057e-05 | M35: -0.0003953810374 | N35: 0.0002300768756 | O35: 0.0001122115937 | P35: 2.087183657e-05 | Q35: 1.573318605e-05 | R35: 3.160883534e-05 | S35: 5.584863402e-06 | U35: 1.682744187e-05 | V35: -1.441808877e-06 | W35: -3.586800972e-06 | X35: -4.115838692e-06 | Y35: 1.32315995e-06 | AA35: -8.17142427e-06 | AB35: 1.770444214e-05
B36: MI Estimation Error: average | F36: -0.003592680005 | G36: -0.001121741157 | H36: -0.0002107003241 | I36: -0.004137968963 | J36: -0.001145221753 | K36: -0.0002870972203 | M36: -0.004295900451 | N36: -0.0007650699536 | O36: -0.0001860682112 | P36: -4.995727395e-05 | Q36: -8.840044576e-06 | R36: 1.459165156e-05 | S36: 4.600376608e-06 | U36: -1.253809618e-05 | V36: -6.137565223e-06 | W36: -4.691350678e-07 | X36: -3.652709309e-06 | Y36: 1.058449795e-06 | AA36: 5.198558494e-06 | AB36: 9.953823844e-06
B37: MI Estimation Error: stdev | F37: 0.09011715055 | G37: 0.04440730078 | H37: 0.02237207622 | I37: 0.0894443361 | J37: 0.04445250788 | K37: 0.02222951137 | M37: 0.09000663603 | N37: 0.04454531007 | O37: 0.02225454344 | P37: 0.01112496355 | Q37: 0.005570907149 | R37: 0.002776003749 | S37: 0.001387242645 | U37: 0.005572992114 | V37: 0.002782212324 | W37: 0.001392661383 | X37: 0.0006964422757 | Y37: 0.0003485455488 | AA37: 0.004607201646 | AB37: 0.003102032989
B39: Percentiles of MI Error Terms
B40: Percentile = 2.5 | F40: -0.1928227141 | G40: -0.09115136657 | H40: -0.04478993798 | I40: -0.1900960583 | J40: -0.09121572599 | K40: -0.04457805837 | M40: -0.1920098085 | N40: -0.09077320918 | O40: -0.0447888501 | P40: -0.02211757195 | Q40: -0.01097353494 | R40: -0.005470053188 | S40: -0.002701627865 | U40: -0.01092904182 | V40: -0.005453539384 | W40: -0.002740312973 | X40: -0.001369093303 | Y40: -0.0006808882696 | AA40: -0.009030022635 | AB40: -0.006084866682
B41: Percentile = 5.0 | F41: -0.1583046585 | G41: -0.075584995 | H41: -0.03753462452 | I41: -0.1562757246 | J41: -0.07544050105 | K41: -0.03749155961 | M41: -0.1591146857 | N41: -0.07541262694 | O41: -0.03716508318 | P41: -0.01844565645 | Q41: -0.009153163014 | R41: -0.004577561701 | S41: -0.002277246176 | U41: -0.009185539931 | V41: -0.004576989915 | W41: -0.0022925233 | X41: -0.001149373082 | Y41: -0.0005726616422 | AA41: -0.007574765524 | AB41: -0.005093611265
B42: Percentile = 50 (median) | F42: 0.0004990502784 | G42: -0.0003192124714 | H42: 9.826537735e-06 | I42: -0.0004813011183 | J42: -0.0002120232675 | K42: -8.100711057e-05 | M42: -0.0003953810374 | N42: 0.0002300768756 | O42: 0.0001122115937 | P42: 2.087183657e-05 | Q42: 1.573318605e-05 | R42: 3.160883534e-05 | S42: 5.584863402e-06 | U42: 1.682744187e-05 | V42: -1.441808877e-06 | W42: -3.586800972e-06 | X42: -4.115838692e-06 | Y42: 1.32315995e-06 | AA42: -8.17142427e-06 | AB42: 1.770444214e-05
B43: Percentile = 95 | F43: 0.136752326 | G43: 0.07003491223 | H43: 0.03600671254 | I43: 0.1367698267 | J43: 0.07052252516 | K43: 0.03591084275 | M43: 0.1369429544 | N43: 0.07045442164 | O43: 0.03586467933 | P43: 0.01807949282 | Q43: 0.009111331962 | R43: 0.004555747425 | S43: 0.002293629036 | U43: 0.009087842889 | V43: 0.004569346574 | W43: 0.002284860273 | X43: 0.001137858472 | Y43: 0.0005737146945 | AA43: 0.007604552899 | AB43: 0.005108445324
B44: Percentile = 97.5 | F44: 0.1612445492 | G44: 0.08331322707 | H44: 0.04262985792 | I44: 0.1609897766 | J44: 0.08339012507 | K44: 0.04273871258 | M44: 0.1608191498 | N44: 0.08332013562 | O44: 0.04275300531 | P44: 0.02152944957 | Q44: 0.01089499809 | R44: 0.005409043003 | S44: 0.002723140083 | U44: 0.01083154799 | V44: 0.005414877855 | W44: 0.00272631293 | X44: 0.001352261446 | Y44: 0.0006829364764 | AA44: 0.009066126961 | AB44: 0.006073970068
B45: Percentile Delta: (95 - 5) / 2 | F45: 0.1475284923 | G45: 0.07280995362 | H45: 0.03677066853 | I45: 0.1465227757 | J45: 0.07298151311 | K45: 0.03670120118 | M45: 0.14802882 | N45: 0.07293352429 | O45: 0.03651488125 | P45: 0.01826257464 | Q45: 0.009132247488 | R45: 0.004566654563 | S45: 0.002285437606 | U45: 0.00913669141 | V45: 0.004573168245 | W45: 0.002288691787 | X45: 0.001143615777 | Y45: 0.0005731881683 | AA45: 0.007589659211 | AB45: 0.005101028294
B47: Confidence Intervals for MI Estimates
B48: Prob of |MI Error| < 10% | F48: 0.7377 | G48: 0.97503 | H48: 0.99999 | I48: 0.7425 | J48: 0.97476 | K48: 0.99998 | M48: 0.73757 | N48: 0.97536 | O48: 1 | P48: 1 | Q48: 1 | R48: 1 | S48: 1 | U48: 1 | V48: 1 | W48: 1 | X48: 1 | Y48: 1 | AA48: 1 | AB48: 1
B49: Prob of |MI Error| < 5% | F49: 0.42321 | G49: 0.74157 | H49: 0.97481 | I49: 0.42845 | J49: 0.74063 | K49: 0.97508 | M49: 0.42676 | N49: 0.73954 | O49: 0.97491 | P49: 0.99998 | Q49: 1 | R49: 1 | S49: 1 | U49: 1 | V49: 1 | W49: 1 | X49: 1 | Y49: 1 | AA49: 1 | AB49: 1
B50: Prob of |MI Error| < 1% | F50: 0.08828 | G50: 0.17894 | H50: 0.34615 | I50: 0.08942 | J50: 0.17674 | K50: 0.34866 | M50: 0.09112 | N50: 0.17727 | O50: 0.34909 | P50: 0.63241 | Q50: 0.92768 | R50: 0.99978 | S50: 1 | U50: 0.9282 | V50: 0.99971 | W50: 1 | X50: 1 | Y50: 1 | AA50: 0.96964 | AB50: 0.99866
B51: Prob of |MI Error| < 0.5% | F51: 0.04404 | G51: 0.09017 | H51: 0.1772 | I51: 0.04373 | J51: 0.0887 | K51: 0.17919 | M51: 0.04608 | N51: 0.09033 | O51: 0.17957 | P51: 0.34909 | Q51: 0.62984 | R51: 0.92835 | S51: 0.99967 | U51: 0.62903 | V51: 0.92776 | W51: 0.99969 | X51: 1 | Y51: 1 | AA51: 0.72302 | AB51: 0.8931
B52: Prob of |MI Error| < 0.1% | F52: 0.009 | G52: 0.01804 | H52: 0.03623 | I52: 0.00898 | J52: 0.01776 | K52: 0.0353 | M52: 0.00947 | N52: 0.01772 | O52: 0.03571 | P52: 0.07058 | Q52: 0.14376 | R52: 0.28153 | S52: 0.52834 | U52: 0.14173 | V52: 0.28157 | W52: 0.52691 | X52: 0.8494 | Y52: 0.99596 | AA52: 0.17136 | AB52: 0.25245
B54: Percentiles of Mort Rate Errors in First Year, as % of True Mort Rate
B55: Percentile = 2.5 | F55: -0.1241001673 | G55: -0.06166803883 | H55: -0.03092227504 | I55: -0.1221535752 | J55: -0.061732498 | K55: -0.03073169151 | M55: -0.123201639 | N55: -0.06172476802 | O55: -0.03088440513 | P55: -0.01551761525 | Q55: -0.007711756043 | R55: -0.003824476153 | S55: -0.001929425634 | U55: -0.007667790633 | V55: -0.007652784698 | W55: -0.007691336796 | X55: -0.007784275804 | Y55: -0.007740873843 | AA55: -0.06193850422 | AB55: -0.06164760562
B56: Percentile = 5.0 | F56: -0.1034467705 | G56: -0.05195727572 | H56: -0.02596819773 | I56: -0.1030873451 | J56: -0.05163849797 | K56: -0.02569915727 | M56: -0.1035024926 | N56: -0.05173833109 | O56: -0.02582083456 | P56: -0.01293225214 | Q56: -0.00647299923 | R56: -0.003209342249 | S56: -0.001616966911 | U56: -0.006442158483 | V56: -0.006429674104 | W56: -0.00643256586 | X56: -0.006534820423 | Y56: -0.006506601349 | AA56: -0.05168878939 | AB56: -0.05166547373
B57: Percentile = 50 (median) | F57: 0.0005798880011 | G57: 0.0002086628228 | H57: 1.802109182e-05 | I57: -0.0001836102456 | J57: -0.0001231208444 | K57: 1.816079021e-05 | M57: -0.0001917593181 | N57: 0.000179419294 | O57: 6.197951734e-05 | P57: 1.438893378e-05 | Q57: 8.149072528e-06 | R57: 8.149072528e-06 | S57: 6.519258022e-07 | U57: 4.330649972e-06 | V57: -8.940696716e-06 | W57: 8.288770914e-06 | X57: -7.078051567e-06 | Y57: 2.095475793e-06 | AA57: 4.95929271e-05 | AB57: 8.181668818e-05
B58: Percentile = 95 | F58: 0.1033990923 | G58: 0.05142590962 | H58: 0.02615362406 | I58: 0.1030639548 | J58: 0.05114315543 | K58: 0.02571875229 | M58: 0.1025009155 | N58: 0.05170634016 | O58: 0.02592091914 | P58: 0.01293416135 | Q58: 0.006486335769 | R58: 0.00323495362 | S58: 0.001622829586 | U58: 0.006501288153 | V58: 0.006507714279 | W58: 0.006492724642 | X58: 0.006480007432 | Y58: 0.006518056616 | AA58: 0.05192100536 | AB58: 0.05170871504
B59: Percentile = 97.5 | F59: 0.123732429 | G59: 0.06126228021 | H59: 0.03106402932 | I59: 0.1231218154 | J59: 0.06068428978 | K59: 0.03068702063 | M59: 0.122069614 | N59: 0.06182061043 | O59: 0.0309451553 | P59: 0.01552990638 | Q59: 0.007746948395 | R59: 0.00384869054 | S59: 0.001927842386 | U59: 0.007780853193 | V59: 0.007753823884 | W59: 0.007727656048 | X59: 0.007728172932 | Y59: 0.007797251455 | AA59: 0.06192571018 | AB59: 0.06145562744
B60: Percentile Delta: (95 - 5) / 2 | F60: 0.1034229314 | G60: 0.05169159267 | H60: 0.0260609109 | I60: 0.10307565 | J60: 0.0513908267 | K60: 0.02570895478 | M60: 0.1030017041 | N60: 0.05172233563 | O60: 0.02587087685 | P60: 0.01293320674 | Q60: 0.0064796675 | R60: 0.003222147934 | S60: 0.001619898248 | U60: 0.006471723318 | V60: 0.006468694191 | W60: 0.006462645251 | X60: 0.006507413927 | Y60: 0.006512328982 | AA60: 0.05180489738 | AB60: 0.05168709438
B62: Confidence Intervals for Mortality Rate Estimate in First Year of Study
B63: Prob of |q Error| < 10% of q | F63: 0.8879631517 | G63: 0.998518119 | H63: 0.9999999998 | I63: 0.8897769627 | J63: 0.9985986988 | K63: 0.9999999998 | M63: 0.8879631517 | N63: 0.998518119 | O63: 0.9999999998 | P63: 1 | Q63: 1 | R63: 1 | S63: 1 | U63: 1 | V63: 1 | W63: 1 | X63: 1 | Y63: 1 | AA63: 0.998518119 | AB63: 0.9983445066
B64: Prob of |q Error| < 5% of q | F64: 0.5731259365 | G64: 0.8879631517 | H64: 0.998518119 | I64: 0.5754751336 | J64: 0.8897769627 | K64: 0.9985986988 | M64: 0.5731259365 | N64: 0.8879631517 | O64: 0.998518119 | P64: 0.9999999998 | Q64: 1 | R64: 1 | S64: 1 | U64: 1 | V64: 1 | W64: 1 | X64: 1 | Y64: 1 | AA64: 0.8879631517 | AB64: 0.8842751812
B65: Prob of |q Error| < 1% of q | F65: 0.1262605517 | G65: 0.2493791637 | H65: 0.4749900127 | I65: 0.1268976766 | J65: 0.2506058121 | K65: 0.4770967605 | M65: 0.1262605517 | N65: 0.2493791637 | O65: 0.4749900127 | P65: 0.7963721501 | Q65: 0.9889958428 | R65: 0.9999996326 | S65: 1 | U65: 0.9889958428 | V65: 0.9889958428 | W65: 0.9889958428 | X65: 0.9889958428 | Y65: 0.9889958428 | AA65: 0.2493791637 | AB65: 0.2469306988
B66: Prob of |q Error| < 0.5% of q | F66: 0.06332944523 | G66: 0.1262605517 | H66: 0.2493791637 | I66: 0.06365105419 | J66: 0.1268976766 | K66: 0.2506058121 | M66: 0.06332944523 | N66: 0.1262605517 | O66: 0.2493791637 | P66: 0.4749900127 | Q66: 0.7963721501 | R66: 0.9889958428 | S66: 0.9999996326 | U66: 0.7963721501 | V66: 0.7963721501 | W66: 0.7963721501 | X66: 0.7963721501 | Y66: 0.7963721501 | AA66: 0.1262605517 | AB66: 0.1249895446
B67: Prob of |q Error| < 0.1% of q | F67: 0.01267868462 | G67: 0.02535416803 | H67: 0.05068274087 | I67: 0.01274320173 | J67: 0.02548315313 | K67: 0.0509403185 | M67: 0.01267868462 | N67: 0.02535416803 | O67: 0.05068274087 | P67: 0.1011611848 | Q67: 0.2007027474 | R67: 0.3889066496 | S67: 0.690859311 | U67: 0.2007027474 | V67: 0.2007027474 | W67: 0.2007027474 | X67: 0.2007027474 | Y67: 0.2007027474 | AA67: 0.02535416803 | AB67: 0.025096894
B104: 0 | C104: -4.577498436
B105: 1 | C105: -4.604752541
B106: 2 | C106: -4.653955936
B107: 3 | C107: -4.620734692
B108: 4 | C108: -4.656860828
B109: 5 | C109: -4.748617172

Sheet Help
B2: A Description of the Inputs and Outputs
B5: Input Parameters | H5: In this example, a time interval of 5 years is analyzed, corresponding to 6 consecutive years of data. For example, the data might run from 2014 to 2019.
B6: Run this case? ("Y" = Yes) | F6: Y | H6: Exposure in the first year is 150K, and in the final year is 160K. This tool assumes that exposure increases linearly across time; therefore, in this example,
B7: Exposure (Lives) in first year | F7: 150000 | H7: exposure would be 150K in the first year, 152K in the second year, etc. The initial mortality rate is assumed to be 1%, and improvement is assumed to be
B8: Exposure (Lives) in final year | F8: 160000 | H8: 2% per year. Therefore, in the 2nd year, the "true" mortality rate would be 1% * (100% - 2%) = 0.98%. In the final year, the true mortality rate would be
B9: True mortality rate in first year | F9: 0.01 | H9: 1% * (100% - 2%) ^ 5 = 0.904%. This scenario uses all 6 years of data to estimate the improvement rate, as opposed to using solely the first and final years.
B10: True rate of mortality improvement | F10: 0.02 | H10: Lastly, this scenario uses 100K stochastic trials. For each of these trials, a mortality rate is randomly generated using a normal distribution. For example,
B11: Final year minus first year of data | F11: 5 | H11: for the first year of the period, the normal distribution would be have a mean of 150K * 1% = 1500 deaths, and a variance equal to 150K * 1% * (100% - 1%).
B12: Use all years of data or only first & final? | F12: All Years | H12: For each trial, a time series of mortality rates is simulated, the rates are logged, and a trend line is fit to the data. The improvement rate is equal to the
B13: Number of stochastic trials (1000s) | F13: 100 | H13: slope of the trend line multiplied by negative 1, as explained on the Methodology worksheet.
B14: Random number sequence | F14: Static
B16: Outputs
B18: Expected death rate in first year | F18: 0.009999999776 | H18: This value echoes the parameter entered above in cell F9.
B19: Expected deaths in first year | F19: 1500 | H19: Exposure in the first year multiplied by the expected mortality rate in the first year.
B20: Stdev of deaths | F20: 38.53569794 | H20: Standard deviation of deaths in the first year, equal to SQR[ Exposure * q * (1-q) ].
B21: Stdev of deaths as % of expected | F21: 0.02569046617 | H21: The smaller this value, the tighter will be the confidence interval for the estimated mortality rate.
B23: Expected death rate in final year | F23: 0.009039207362 | H23: The "true" mortality rate in the final year. This is equal to q_initial * (1 - improvement rate) ^ N, where N = final year minus initial year.
B24: Expected deaths in final year | F24: 1446.273193 | H24: The final "true" mortality rate multiplied by the final year's exposure.
B25: Stdev of deaths | F25: 37.85762787 | H25: Standard deviation of deaths in the first year, equal to SQR[ Exposure * q * (1-q) ].
B26: Stdev of deaths as % of expected | F26: 0.02617598698 | H26: The smaller this value, the tighter will be the confidence interval for the estimated mortality rate.
B28: "True" MI rate | F28: 0.01999999955 | H28: The expected rate of mortality improvement. This echoes parameter F10.
B30: MI Estimation Error: median | F30: -1.753959805e-05 | H30: The MI error is equal to the estimated MI rate minus the “true” MI rate. For example, if the true MI rate is 2%, and a particular stochastic trial
B31: MI Estimation Error: average | F31: -2.965611878e-05 | H31: generates a result of 2.5%, then the error is 2.5% minus 2% = 0.5%. Across a large number of stochastic trials, the median MI error is likely to
B32: MI Estimation Error: stdev | F32: 0.006078599162 | H32: be close to zero. The lower the stdev of the MI errors, the more reliable is the MI estimator.
B34: Percentiles of MI Error Terms
B35: Percentile = 2.5 | F35: -0.01202594438 | H35: Various percentiles extracted from the distribution of MI error terms. In this example, the 5th percentile is negative 1%, the median is very close to 0%,
B36: Percentile = 5.0 | F36: -0.01008798787 | H36: and the 95th percentile is a little greater than positive 1%. Therefore, there is about a 90% chance of an MI estimate falling within 1% of the true value.
B37: Percentile = 50 (median) | F37: -1.753959805e-05 | H37: For example, if this analysis produced an MI estimate of 1.9%, we could conclude that there is a 90% chance that the "true" MI rate falls within 1% of
B38: Percentile = 95 | F38: 0.00995988464 | H38: the estimate, resulting in a 90% confidence interval running from 0.9% to 2.9%.
B39: Percentile = 97.5 | F39: 0.01184347598
B40: Percentile Delta: (95 - 5) / 2 | F40: 0.01002393626
B42: Confidence Intervals for MI Estimates
B43: Prob of |MI Error| < 10% | F43: 1 | H43: These results are another way of expressing the reliability of the MI estimate. For example, if the MI estimate is 1.9%, we could conclude
B44: Prob of |MI Error| < 5% | F44: 1 | H44: that there is a 59% probability that the true MI rate falls within 0.5% of this value, resulting in a confidence interval running from
B45: Prob of |MI Error| < 1% | F45: 0.89932 | H45: 1.4% to 2.4%.
B46: Prob of |MI Error| < 0.5% | F46: 0.58957
B47: Prob of |MI Error| < 0.1% | F47: 0.13037
B49: Percentiles of Mort Rate Errors in First Year, as % of True Mort Rate
B50: Percentile = 2.5 | F50: -0.05020303186 | H50: These results are focused on mortality rates as opposed to mortality improvement rates.
B51: Percentile = 5.0 | F51: -0.04234045278 | H51: The results show the distribution of mortality rate errors for the first year of the study.
B52: Percentile = 50 (median) | F52: -0.0001361127943 | H52: If the true mortality rate is 1.00%, and the estimated mortality rate is 1.02%,
B53: Percentile = 95 | F53: 0.04208873026 | H53: then the error is 2%. Roughly, the results indicate that there is a 90% chance that the
B54: Percentile = 97.5 | F54: 0.05021986552 | H54: error is less than 4.2%.
B55: Percentile Delta: (95 - 5) / 2 | F55: 0.04221459152
B57: Confidence Intervals for Mortality Rate Estimate in First Year of Study
B58: Prob of |q Error| < 10% of q | F58: 0.9998949343 | H58: These are confidence intervals for the mortality rate estimate in the first year of the study.
B59: Prob of |q Error| < 5% of q | F59: 0.947534289 | H59: In this example, there is a 94.75% chance that the estimated mortality rate falls within
B60: Prob of |q Error| < 1% of q | F60: 0.3018792786 | H60: 5% of the true mortality rate. Another way of looking at this is there is a 94.75% chance
B61: Prob of |q Error| < 0.5% of q | F61: 0.1537687353 | H61: that the true mortality rate falls between 95% and 105% of the estimated mortality rate.
B62: Prob of |q Error| < 0.1% of q | F62: 0.03093887558

Sheet Methodology
B2: Methodology
B4: Below is an illustration of how mortality data is simulated as a function of user-specified assumptions, and
B5: then used to produce a mortality improvement rate estimate. This example uses 6 consecutive years of
B6: simulated data. The data below is for one stochastic trial. Press the "Generate" button to produce a fresh
B7: set of random numbers, and a fresh set of simulated data.
B9: Assumptions
B10: 100000 | C10: Exposure
B11: 0.01 | C11: True mortality rate in first year
B12: 0.02 | C12: True rate of mortality improvement
J13: Logged
B14: Simulation Results | D14: "True" | G14: Random | I14: Simulated | J14: Simulated
D15: Mortality | E15: Expected | F15: Stdev | G15: Number | H15: Simulated | I15: Mortality | J15: Mortality
C16: Year | D16: Rate | E16: Deaths | F16: of Deaths | G16: 0 to 1 | H16: Deaths | I16: Rate | J16: Rate
C18: 1 | D18: =B11 -> 0.01 | E18: =D18*$B$10 -> 1000 | F18: =SQRT($B$10*D18*(1-D18)) -> 31.46426545 | G18: =RAND() -> 0.8195581831 | H18: =_xlfn.NORM.INV(G18,E18,F18) -> 1028.748353 | I18: =H18/$B$10 -> 0.01028748353 | J18: =LN(I18) -> -4.576827314 | L18: =-SLOPE(J18:J23,C18:C23) -> 0.03614968025 | M18: Estimated Instantaneous Geometric Rate of Mortality Improvement
C19: 2 | D19: =D18*(1-$B$12) -> 0.0098 | E19: 980 | F19: 31.15117975 | G19: =RAND() -> 0.7081527364 | H19: =_xlfn.NORM.INV(G19,E19,F19) -> 997.0707274 | I19: 0.009970707274 | J19: =LN(I19) -> -4.608103757
C20: 3 | D20: =D19*(1-$B$12) -> 0.009604 | E20: 960.4 | F20: 30.84114652 | G20: 0.885856706 | H20: 997.5569287 | I20: 0.009975569287 | J20: -4.607616246 | L20: =1-EXP(-L18) -> 0.03550408331 | M20: Estimated Instantaneous Geometric Rate of Mortality Improvement
C21: 4 | D21: =D20*(1-$B$12) -> 0.00941192 | E21: 941.192 | F21: 30.53413788 | G21: 0.2809227626 | H21: 923.4790715 | I21: 0.009234790715 | J21: -4.684777328
C22: 5 | D22: =D21*(1-$B$12) -> 0.0092236816 | E22: 922.36816 | F22: 30.2301262 | G22: 0.3234704076 | H22: 908.522273 | I22: 0.00908522273 | J22: -4.701106061 | L22: =L18-B12 -> 0.01614968025 | M22: Estimation Error (equal to the estimated MI rate minus the "true" MI rate)
C23: 6 | D23: =D22*(1-$B$12) -> 0.009039207968 | E23: 903.9207968 | F23: 29.92908399 | G23: 0.06135528993 | H23: =_xlfn.NORM.INV(G23,E23,F23) -> 857.725388 | I23: 0.00857725388 | J23: -4.758641477
B26: A statistically meaningful MI estimate is one that has a high probability of falling close to the "true" MI value.
B27: By design, the model knows the "true" MI value. The reliability of an estimation process is assessed by calculating
B28: the distribution of potential MI estimates, and translating each estimate into an MI error term. The error is
B29: the difference between an MI estimate and the true MI rate. Ideally, the distribution of error terms should have
B30: a low standard deviation -- the lower the standard deviation of the estimator, the greater its reliability.
B32: This tool uses simulation to calculate the distribution of MI error terms. The user can choose 100K, 200K, 500K,
B33: or 1M stochastic trials. For each trial, mortality rates are simulated, and the mortality improvement rate is estimated
B34: from the simulated mortality rates. The simulated mortality rates are drawn from a normal distribution that
B35: reflects the assumed "true" or "expected" mortality rate, and the assumed exposure. For example, if the
B36: expected mortality rate in the initial year is 1% and the exposure is 100K lives, then the simulated mortality rate
B37: will be drawn from a normal distribution with a mean of 1% and a variance equal to 1% * 99% / 100K. This is
B38: accomplished by generating a random number between 0 and 1, and plugging this value into the inverse cumulative
B39: normal distribution. Random numbers are independently generated to produce a mortality rate estimate for
B40: each year in the assumed period of analysis. If the period is 5 years in length, then a time series of 5 mortality
B41: rate estimates is generated. The normal distribution is modified across time to reflect the assumed rate of
B42: mortality improvement, as well as any changes in exposure.
B44: To produce improvement rate estimates, the user has the option of using only the first and final years of simulated
B45: data, or using all years of simulated data. If only the first and final years are used, each MI estimate is calculated
B46: as follows: MI rate = 1 - (q_final_simulated / q_initial _simulated) ^ (1 / N), where N = the final year minus the
B47: first year. If the user selects the option to use all years of simulated data, then the MI rate is estimated by first
B48: taking the log of each mortality rate in the simulated time series, and then fitting a regression to this data. The
B49: slope of the regression line, multiplied by negative 1, is equal to the geometric rate of mortality improvement.
